fUSD/lending_fUSD_20250929
["ID","MTS","AMOUNT","RATE_DAILY","PERIOD"]
[388374435,1759132246441,-151.0,0.00018871,2]
[388374436,1759132246451,-151.0,0.00018871,2]
[388374437,1759132246460,-151.0,0.00018871,2]
[388374438,1759132246470,-159.499636,0.00018871,2]
[388374439,1759132246479,-151.0,0.00018871,2]
[388374440,1759132246489,-151.0,0.00018871,2]
[388374441,1759132246499,-198.140906,0.00018871,2]
[388374442,1759132246509,-151.0,0.00018871,2]
[388374443,1759132246518,-151.0,0.00018871,2]
[388374444,1759132246529,-151.0,0.00018871,2]
[388374445,1759132246538,-151.0,0.00018871,2]
[388374446,1759132246548,-151.0,0.00018871,2]
[388374447,1759132246558,-151.0,0.00018871,2]
[388374448,1759132246568,-151.0,0.00018871,2]
[388374449,1759132246579,-151.0,0.00018871,2]
[388374450,1759132246589,-151.0,0.00018871,2]
[388374451,1759132246600,-151.0,0.00018871,2]
[388374452,1759132246610,-294.834933,0.00018871,2]
[388374453,1759132246621,-200.0,0.00018871,2]
[388374454,1759132246630,-151.0,0.00018871,2]
[388374455,1759132246645,-151.0,0.00018871,2]
[388374456,1759132246655,-151.0,0.00018871,2]
[388374457,1759132246665,-1230.0,0.00018871,2]
[388374458,1759132246675,-153.17015232,0.00018871,2]
[388374459,1759132246686,-151.0,0.00018871,2]
[388374460,1759132246696,-151.0,0.00018871,2]
[388374461,1759132246706,-151.0,0.00018871,2]
[388374462,1759132246716,-151.0,0.00018871,2]
[388374463,1759132246726,-151.0,0.00018871,2]
[388374464,1759132246737,-151.0,0.00018871,2]
[388374465,1759132246747,-151.0,0.00018871,2]
[388374466,1759132246758,-151.0,0.00018871,2]
[388374467,1759132246768,-151.0,0.00018871,2]
[388374468,1759132246779,-151.0,0.00018871,2]
[388374469,1759132246790,-195.811718,0.00018871,2]
[388374470,1759132246799,-151.0,0.00018871,2]
[388374471,1759132246810,-243.635918,0.00018871,2]
[388374472,1759132246820,-151.0,0.00018871,2]
[388374473,1759132246830,-243.635918,0.00018871,2]
[388374474,1759132246841,-1230.0,0.00018871,2]
[388374475,1759132246851,-151.0,0.00018871,2]
[388374476,1759132246860,-507.44062365,0.00018873,2]
[388374482,1759132247149,-500.0,0.00018873,2]
[388374483,1759132247194,-500.0,0.00018873,2]
[388374484,1759132247205,-500.0,0.00018873,2]
[388374485,1759132247214,-500.0,0.00018873,2]
[388374486,1759132247224,-500.0,0.00018873,2]
[388374487,1759132247234,-500.0,0.00018873,2]
[388374488,1759132247244,-501.62690061,0.00018873,2]
[388374489,1759132247254,-500.0,0.00018873,2]
[388374490,1759132247263,-500.0,0.00018873,2]
[388374491,1759132247272,-500.0,0.00018873,2]
[388374492,1759132247282,-500.0,0.00018873,2]
[388374493,1759132247292,-500.0,0.00018873,2]
[388374494,1759132247302,-500.0,0.00018873,2]
[388374495,1759132247312,-527.2514745,0.00018873,2]
[388374496,1759132247321,-500.0,0.00018873,2]
[388374497,1759132247331,-500.0,0.00018873,2]
[388374498,1759132247340,-500.0,0.00018873,2]
[388374499,1759132247350,-500.0,0.00018873,2]
[388374500,1759132247360,-500.0,0.00018873,2]
[388374501,1759132247369,-500.0,0.00018873,2]
[388374502,1759132247379,-500.0,0.00018873,2]
[388374503,1759132247388,-500.0,0.00018873,2]
[388374504,1759132247398,-500.0,0.00018873,2]
[388374505,1759132247407,-500.0,0.00018873,2]
[388374506,1759132247417,-500.0,0.00018873,2]
[388374507,1759132247427,-500.0,0.00018873,2]
[388374508,1759132247436,-508.27789364,0.00018873,2]
[388374509,1759132247446,-500.0,0.00018873,2]
[388374510,1759132247456,-500.0,0.00018873,2]
[388374511,1759132247465,-207.23736614,0.00018873,2]
[388374512,1759132247475,-500.0,0.00018873,2]
[388374513,1759132247485,-500.0,0.00018873,2]
[388374514,1759132247495,-500.0,0.00018873,2]
[388374515,1759132247505,-161.16816585,0.00018873,2]
[388374516,1759132247515,-500.0,0.00018873,2]
[388374517,1759132247525,-500.65353541,0.00018873,2]
[388374518,1759132247535,-500.0,0.00018873,2]
[388374519,1759132247545,-529.14518882,0.00018873,2]
[388374520,1759132247555,-500.0,0.00018873,2]
[388374521,1759132247565,-150.0,0.00018896,2]
[388374522,1759132247575,-150.0,0.00018896,2]
[388374523,1759132247585,-150.0,0.00018896,2]
[388374524,1759132247594,-150.0,0.00018896,2]
[388374525,1759132247603,-313.12465,0.000189,2]
[388374526,1759132247613,-443.26,0.000189,2]
[388374527,1759132247623,-1000.0,0.00018921,2]
[388374528,1759132247634,-500.0,0.00018921,2]
[388374529,1759132247647,-150.0,0.00018921,2]
[388374530,1759132247657,-507.0,0.00018932,2]
[388374531,1759132247666,-500.0,0.00018932,2]
[388374532,1759132247676,-500.0,0.00018932,2]
[388374533,1759132247686,-500.0,0.00018932,2]
[388374534,1759132247696,-250.37401073,0.00018932,2]
[388374535,1759132247706,-484.0,0.00018932,2]
[388374536,1759132247718,-4811.18390746,0.00019002,2]
[388374537,1759132247728,-201.07352773,0.00019002,2]
[388374538,1759132247738,-500.0,0.0001902,2]
[388374539,1759132247747,-1776.530326,0.00019025,2]
[388374540,1759132247758,-1488.415129,0.00019025,2]
[388374541,1759132247768,-841.436975,0.00019025,2]
[388374542,1759132247779,-200.0,0.0001906,2]
[388374543,1759132247789,-200.0,0.0001906,2]
[388374544,1759132247799,-200.0,0.0001906,2]
[388374545,1759132247810,-200.0,0.0001906,2]
[388374546,1759132247820,-2500.0,0.00019072,3]
[388374547,1759132247831,-2500.0,0.00019081,3]
[388374548,1759132247841,-2500.0,0.0001909,3]
[388374549,1759132247850,-500.0,0.00019092,7]
[388374550,1759132247860,-2500.0,0.00019099,3]
[388374551,1759132247869,-1000.0,0.00019099,2]
[388374552,1759132247879,-2500.0,0.00019108,3]
[388374553,1759132247889,-152.0,0.00019115,3]
[388374554,1759132247898,-2500.0,0.00019116,3]
[388374555,1759132247908,-250.0,0.00019123,2]
[388374556,1759132247918,-2500.0,0.00019125,3]
[388374558,1759132247928,-2500.0,0.00019134,3]
[388374560,1759132247937,-2500.0,0.00019143,3]
[388374562,1759132247947,-2500.0,0.00019152,3]
[388374564,1759132247957,-2500.0,0.0001916,3]
[388374566,1759132247967,-2500.0,0.00019169,3]
[388374568,1759132247976,-2500.0,0.00019178,3]
[388374570,1759132247986,-500.0,0.00019178,2]
[388374572,1759132247996,-151.0,0.00019178,2]
[388374574,1759132248006,-150.0,0.00019178,2]
[388374576,1759132248016,-4811.18390746,0.00019182,2]
[388374578,1759132248026,-201.07352773,0.00019182,2]
[388374580,1759132248035,-500.0,0.00019195,2]
[388374582,1759132248045,-150.0,0.00019195,2]
[388374584,1759132248054,-151.0,0.00019195,2]
[388374586,1759132248064,-151.0,0.00019195,2]
[388374588,1759132248073,-151.0,0.00019195,2]
[388374591,1759132248083,-243.635918,0.00019195,2]
[388374592,1759132248093,-507.0,0.00019206,2]
[388374593,1759132248103,-168.0,0.00019206,2]
[388374594,1759132248112,-500.0,0.00019206,2]
[388374595,1759132248123,-632.1371463,0.00019206,2]
[388374596,1759132248133,-484.0,0.00019206,2]
[388374597,1759132248143,-1000.0,0.00019221,2]
[388374598,1759132248152,-1000.0,0.00019221,2]
[388374599,1759132248162,-731.51935822,0.00019221,2]
[388374600,1759132248171,-1000.0,0.00019221,2]
[388374601,1759132248181,-1000.0,0.00019221,2]
[388374602,1759132248190,-1000.0,0.00019221,2]
[388374603,1759132248200,-1000.0,0.00019221,2]
[388374604,1759132248210,-1000.0,0.00019221,2]
[388374605,1759132248219,-1000.0,0.00019221,2]
[388374606,1759132248229,-1000.0,0.00019221,2]
[388374607,1759132248239,-151.0,0.00019242,2]
[388374608,1759132248249,-151.0,0.00019242,2]
[388374609,1759132248260,-166.877477,0.00019242,2]
[388374610,1759132248269,-151.0,0.00019242,2]
[388374611,1759132248279,-151.0,0.00019242,2]
[388374612,1759132248288,-151.0,0.00019242,2]
[388374613,1759132248298,-153.0,0.00019242,2]
[388374614,1759132248308,-153.0,0.00019242,2]
[388374615,1759132248318,-153.0,0.00019242,2]
[388374616,1759132248327,-153.0,0.00019242,2]
[388374617,1759132248337,-153.0,0.00019242,2]
[388374618,1759132248347,-153.0,0.00019242,2]
[388374619,1759132248357,-153.0,0.00019242,2]
[388374620,1759132248368,-153.0,0.00019242,2]
[388374621,1759132248377,-153.0,0.00019242,2]
[388374622,1759132248387,-153.0,0.00019242,2]
[388374624,1759132248396,-153.0,0.00019242,2]
[388374625,1759132248406,-153.0,0.00019242,2]
[388374627,1759132248416,-153.0,0.00019242,2]
[388374628,1759132248425,-153.0,0.00019242,2]
[388374629,1759132248435,-153.0,0.00019242,2]
[388374630,1759132248444,-153.0,0.00019242,2]
[388374631,1759132248454,-153.0,0.00019242,2]
[388374632,1759132248464,-153.0,0.00019242,2]
[388374633,1759132248473,-153.0,0.00019242,2]
[388374634,1759132248483,-153.0,0.00019242,2]
[388374635,1759132248493,-153.0,0.00019242,2]
[388374636,1759132248503,-153.0,0.00019242,2]
[388374637,1759132248512,-153.0,0.00019242,2]
[388374638,1759132248522,-153.0,0.00019242,2]
[388374639,1759132248532,-153.0,0.00019242,2]
[388374640,1759132248543,-153.0,0.00019242,2]
[388374641,1759132248553,-153.0,0.00019242,2]
[388374642,1759132248563,-153.0,0.00019242,2]
[388374643,1759132248572,-153.0,0.00019242,2]
[388374644,1759132248582,-153.0,0.00019242,2]
[388374645,1759132248592,-153.0,0.00019242,2]
[388374646,1759132248602,-153.0,0.00019242,2]
[388374647,1759132248611,-153.0,0.00019242,2]
[388374648,1759132248621,-153.0,0.00019242,2]
[388374649,1759132248631,-153.0,0.00019242,2]
[388374650,1759132248645,-153.0,0.00019242,2]
[388374651,1759132248654,-153.0,0.00019242,2]
[388374652,1759132248665,-153.0,0.00019242,2]
[388374653,1759132248675,-153.0,0.00019242,2]
[388374654,1759132248684,-153.0,0.00019242,2]
[388374655,1759132248694,-153.0,0.00019242,2]
[388374656,1759132248704,-153.0,0.00019242,2]
[388374657,1759132248714,-153.0,0.00019242,2]
[388374658,1759132248723,-153.0,0.00019242,2]
[388374659,1759132248733,-153.0,0.00019242,2]
[388374660,1759132248744,-153.0,0.00019242,2]
[388374661,1759132248754,-153.0,0.00019242,2]
[388374662,1759132248764,-153.0,0.00019242,2]
[388374663,1759132248773,-153.0,0.00019242,2]
[388374664,1759132248782,-153.0,0.00019242,2]
[388374665,1759132248792,-153.0,0.00019242,2]
[388374666,1759132248802,-153.0,0.00019242,2]
[388374667,1759132248812,-153.0,0.00019242,2]
[388374668,1759132248822,-153.0,0.00019242,2]
[388374669,1759132248833,-153.0,0.00019242,2]
[388374670,1759132248842,-153.0,0.00019242,2]
[388374671,1759132248851,-153.0,0.00019242,2]
[388374672,1759132248861,-153.0,0.00019242,2]
[388374673,1759132248871,-153.0,0.00019242,2]
[388374674,1759132248881,-153.0,0.00019242,2]
[388374675,1759132248891,-153.0,0.00019242,2]
[388374676,1759132248901,-153.0,0.00019242,2]
[388374677,1759132248911,-153.0,0.00019242,2]
[388374678,1759132248921,-153.0,0.00019242,2]
[388374679,1759132248931,-153.0,0.00019242,2]
[388374680,1759132248941,-153.0,0.00019242,2]
[388374681,1759132248950,-153.0,0.00019242,2]
[388374682,1759132248960,-153.0,0.00019242,2]
[388374683,1759132248970,-153.0,0.00019242,2]
[388374684,1759132248981,-153.0,0.00019242,2]
[388374685,1759132248990,-153.0,0.00019242,2]
[388374686,1759132249000,-153.0,0.00019242,2]
[388374687,1759132249010,-153.0,0.00019242,2]
[388374688,1759132249019,-153.0,0.00019242,2]
[388374689,1759132249029,-153.0,0.00019242,2]
[388374690,1759132249039,-153.0,0.00019242,2]
[388374691,1759132249049,-153.0,0.00019242,2]
[388374692,1759132249059,-153.0,0.00019242,2]
[388374693,1759132249068,-153.0,0.00019242,2]
[388374694,1759132249078,-153.0,0.00019242,2]
[388374695,1759132249088,-153.0,0.00019242,2]
[388374696,1759132249098,-153.0,0.00019242,2]
[388374697,1759132249107,-153.0,0.00019242,2]
[388374698,1759132249117,-153.0,0.00019242,2]
[388374699,1759132249127,-153.0,0.00019242,2]
[388374700,1759132249136,-153.0,0.00019242,2]
[388374701,1759132249146,-153.0,0.00019242,2]
[388374702,1759132249155,-153.0,0.00019242,2]
[388374703,1759132249165,-153.0,0.00019242,2]
[388374704,1759132249174,-153.0,0.00019242,2]
[388374705,1759132249183,-153.0,0.00019242,2]
[388374706,1759132249193,-153.0,0.00019242,2]
[388374707,1759132249203,-153.0,0.00019242,2]
[388374708,1759132249213,-153.0,0.00019242,2]
[388374709,1759132249222,-153.0,0.00019242,2]
[388374710,1759132249232,-153.0,0.00019242,2]
[388374711,1759132249242,-153.0,0.00019242,2]
[388374712,1759132249252,-153.0,0.00019242,2]
[388374713,1759132249262,-153.0,0.00019242,2]
[388374714,1759132249271,-153.0,0.00019242,2]
[388374715,1759132249281,-153.0,0.00019242,2]
[388374716,1759132249291,-153.0,0.00019242,2]
[388374717,1759132249301,-153.0,0.00019242,2]
[388374718,1759132249311,-153.0,0.00019242,2]
[388374719,1759132249321,-153.0,0.00019242,2]
[388374720,1759132249331,-153.0,0.00019242,2]
[388374721,1759132249341,-153.0,0.00019242,2]
[388374722,1759132249351,-153.0,0.00019242,2]
[388374723,1759132249360,-153.0,0.00019242,2]
[388374724,1759132249370,-153.0,0.00019242,2]
[388374725,1759132249379,-153.0,0.00019242,2]
[388374726,1759132249389,-153.0,0.00019242,2]
[388374727,1759132249399,-153.0,0.00019242,2]
[388374728,1759132249409,-153.0,0.00019242,2]
[388374729,1759132249419,-153.0,0.00019242,2]
[388374730,1759132249429,-153.0,0.00019242,2]
[388374731,1759132249439,-153.0,0.00019242,2]
[388374732,1759132249448,-153.0,0.00019242,2]
[388374733,1759132249458,-153.0,0.00019242,2]
[388374734,1759132249468,-153.0,0.00019242,2]
[388374735,1759132249478,-153.0,0.00019242,2]
[388374736,1759132249488,-153.0,0.00019242,2]
[388374737,1759132249498,-153.0,0.00019242,2]
[388374738,1759132249508,-153.0,0.00019242,2]
[388374739,1759132249518,-153.0,0.00019242,2]
[388374740,1759132249528,-153.0,0.00019242,2]
[388374741,1759132249537,-153.0,0.00019242,2]
[388374742,1759132249547,-200.0,0.0001925,2]
[388374743,1759132249557,-200.0,0.0001925,2]
[388374744,1759132249566,-200.0,0.0001925,2]
[388374745,1759132249575,-200.0,0.0001925,2]
[388374746,1759132249584,-500.0,0.0001931,2]
[388374747,1759132249594,-500.56999013,0.0001931,2]
[388374748,1759132249604,-500.0,0.0001931,2]
[388374749,1759132249614,-500.0,0.0001931,2]
[388374750,1759132249623,-570.50939943,0.0001931,2]
[388374751,1759132249633,-500.0,0.0001931,2]
[388374752,1759132249648,-500.86166811,0.0001931,2]
[388374753,1759132249658,-547.25014336,0.0001931,2]
[388374754,1759132249668,-500.0,0.00019322,2]
[388374755,1759132249678,-500.0,0.00019322,2]
[388374756,1759132249687,-571.86697367,0.00019322,2]
[388374757,1759132249697,-500.0,0.00019322,2]
[388374758,1759132249708,-168.0,0.00019336,2]
[388374759,1759132249719,-8350.23,0.00019339,2]
[388374760,1759132249730,-1776.530326,0.0001934,3]
[388374761,1759132249740,-1488.415129,0.0001934,3]
[388374762,1759132249750,-841.436975,0.0001934,3]
[388374763,1759132249760,-1776.530326,0.0001935,2]
[388374764,1759132249770,-1488.415129,0.0001935,2]
[388374765,1759132249780,-841.436975,0.0001935,2]
[388374766,1759132249789,-4811.18390746,0.00019361,2]
[388374767,1759132249800,-201.07352773,0.00019361,2]
[388374768,1759132249810,-500.0,0.00019366,7]
[388374769,1759132249819,-1417.0,0.00019398,2]
[388374770,1759132249829,-3174.41,0.00019407,2]
[388374771,1759132249839,-169.326,0.00019407,2]
[388374772,1759132249848,-1115.48286777,0.00019421,2]
[388374773,1759132249858,-1000.0,0.00019421,2]
[388374774,1759132249867,-1000.0,0.00019421,2]
[388374775,1759132249877,-749.1015785,0.00019421,2]
[388374776,1759132249887,-1000.0,0.00019421,2]
[388374777,1759132249897,-172.44651202,0.00019421,2]
[388374778,1759132249907,-1000.0,0.00019421,2]
[388374779,1759132249917,-169.92915653,0.00019421,2]
[388374780,1759132249927,-1000.0,0.00019421,2]
[388374781,1759132249938,-1000.0,0.00019421,2]
[388374782,1759132249948,-1000.0,0.00019421,2]
[388374783,1759132249959,-1000.0,0.00019421,2]
[388374784,1759132249969,-1000.0,0.00019421,2]
[388374785,1759132249979,-913.4654045,0.00019421,2]
[388374786,1759132249990,-1000.0,0.00019421,2]
[388374787,1759132249999,-1000.0,0.00019421,2]
[388374788,1759132250009,-1000.0,0.00019421,2]
[388374789,1759132250019,-1000.0,0.00019421,2]
[388374790,1759132250030,-164.24172155,0.00019421,2]
[388374791,1759132250040,-1000.0,0.00019421,2]
[388374792,1759132250050,-557.78613881,0.00019421,2]
[388374793,1759132250060,-513.53744754,0.00019421,2]
[388374794,1759132250070,-1000.0,0.00019421,2]
[388374795,1759132250080,-1000.0,0.00019421,2]
[388374796,1759132250090,-257.60398807,0.00019421,2]
[388374797,1759132250102,-1000.0,0.00019421,2]
[388374798,1759132250112,-1000.0,0.00019421,2]
[388374799,1759132250122,-1000.0,0.00019421,2]
[388374800,1759132250132,-1000.0,0.00019421,2]
[388374801,1759132250142,-1000.0,0.00019421,2]
[388374802,1759132250152,-1000.0,0.00019421,2]
[388374803,1759132250162,-1000.0,0.00019421,2]
[388374804,1759132250172,-151.0,0.00019421,2]
[388374805,1759132250182,-151.0,0.00019421,2]
[388374806,1759132250192,-243.635918,0.00019421,2]
[388374807,1759132250202,-200.0,0.00019443,2]
[388374808,1759132250212,-200.0,0.00019443,2]
[388374809,1759132250222,-200.0,0.00019443,2]
[388374810,1759132250232,-200.0,0.00019443,2]
[388374811,1759132250243,-220.0,0.0001945,2]
[388374812,1759132250252,-500.0,0.00019452,2]
[388374813,1759132250262,-1500.0,0.00019468,2]
[388374814,1759132250272,-500.0,0.00019469,2]
[388374815,1759132250283,-255.29487301,0.00019469,2]
[388374816,1759132250294,-507.0,0.0001948,2]
[388374817,1759132250303,-331.0,0.0001948,2]
[388374818,1759132250313,-484.0,0.0001948,2]
[388374819,1759132250323,-4811.18390746,0.00019541,2]
[388374820,1759132250334,-201.07352773,0.00019541,2]
[388374821,1759132250344,-168.0,0.00019566,2]
[388374822,1759132250354,-2291.70900779,0.00019566,2]
[388374823,1759132250366,-4113.0,0.00019579,2]
[388374824,1759132250376,-168.0,0.00019583,2]
[388374825,1759132250386,-200.0,0.00019637,2]
[388374826,1759132250395,-200.0,0.00019637,2]
[388374827,1759132250405,-200.0,0.00019637,2]
[388374828,1759132250416,-200.0,0.00019637,2]
[388374829,1759132250426,-500.0,0.0001964,7]
[388374830,1759132250436,-151.0,0.00019666,2]
[388374831,1759132250446,-151.0,0.00019666,2]
[388374832,1759132250455,-151.0,0.00019666,2]
[388374833,1759132250467,-151.0,0.00019666,2]
[388374834,1759132250477,-1776.530326,0.00019675,2]
[388374835,1759132250487,-1488.415129,0.00019675,2]
[388374836,1759132250496,-841.436975,0.00019675,2]
[388374837,1759132250507,-168.0,0.0001968,2]
[388374838,1759132250517,-4811.18390746,0.0001972,2]
[388374839,1759132250528,-201.07352773,0.0001972,2]
[388374840,1759132250538,-434.0,0.00019726,2]
[388374841,1759132250547,-151.0,0.00019726,2]
[388374842,1759132250558,-151.0,0.00019726,2]
[388374843,1759132250569,-243.635918,0.00019726,2]
[388374844,1759132250579,-41876.41,0.00019726,2]
[388374845,1759132250589,-250.0,0.00019726,2]
[388374846,1759132250599,-156.587,0.00019726,2]
[388374847,1759132250609,-200.0,0.00019741,2]
[388374848,1759132250619,-500.0,0.00019743,2]
[388374849,1759132250628,-1417.0,0.00019744,2]
[388374850,1759132250641,-507.0,0.00019754,2]
[388374851,1759132250652,-500.0,0.00019754,2]
[388374852,1759132250662,-484.0,0.00019754,2]
[388374853,1759132250672,-745.85969833,0.00019768,2]
[388374854,1759132250683,-1500.0,0.00019768,2]
[388374855,1759132250693,-1500.0,0.00019768,2]
[388374856,1759132250703,-1104.32702937,0.00019768,2]
[388374857,1759132250714,-1500.0,0.00019768,2]
[388374858,1759132250724,-1500.0,0.00019768,2]
[388374859,1759132250734,-1500.0,0.00019768,2]
[388374860,1759132250745,-1512.85212368,0.00019768,2]
[388374861,1759132250754,-1500.0,0.00019768,2]
[388374862,1759132250764,-486.05539362,0.00019781,2]
[388374863,1759132250775,-1200.0,0.00019792,2]
[388374864,1759132250785,-300.0,0.00019799,2]
[388374865,1759132250794,-2799.71963645,0.0001981,5]
[388374866,1759132250804,-486.05539362,0.00019841,2]
[388374867,1759132250814,-1000.0,0.00019858,2]
[388374868,1759132250824,-1000.0,0.00019858,2]
[388374869,1759132250834,-1000.0,0.00019858,2]
[388374870,1759132250845,-239.20126299,0.00019858,2]
[388374871,1759132250855,-206.13195001,0.00019861,2]
[388374872,1759132250864,-168.0,0.00019866,2]
[388374873,1759132250875,-5000.0,0.00019868,2]
[388374874,1759132250885,-1000.0,0.0001987,2]
[388374875,1759132250895,-1000.0,0.0001987,2]
[388374876,1759132250905,-1000.0,0.0001987,2]
[388374877,1759132250915,-500.0,0.00019873,2]
[388374878,1759132250927,-500.0,0.00019873,2]
[388374879,1759132250937,-500.0,0.00019873,2]
[388374880,1759132250947,-500.0,0.00019873,2]
[388374881,1759132250957,-500.0,0.00019873,2]
[388374882,1759132250967,-500.0,0.00019873,2]
[388374883,1759132250976,-160.24025986,0.00019873,2]
[388374884,1759132250987,-500.0,0.00019873,2]
[388374885,1759132250997,-500.0,0.00019873,2]
[388374886,1759132251007,-500.0,0.00019873,2]
[388374887,1759132251017,-560.72495636,0.00019873,2]
[388374888,1759132251027,-500.0,0.00019873,2]
[388374889,1759132251037,-500.0,0.00019873,2]
[388374890,1759132251047,-500.0,0.00019873,2]
[388374891,1759132251057,-500.0,0.00019873,2]
[388374892,1759132251067,-167.84790287,0.00019873,2]
[388374893,1759132251076,-150.0,0.00019879,2]
[388374894,1759132251087,-300.0,0.00019879,2]
[388374895,1759132251098,-461467.84843376,0.0001988,2]
[388374897,1759132254834,-418.11804178,0.0001657,2]
[388374898,1759132254844,-500.0,0.0001657,2]
[388374899,1759132254853,-500.0,0.0001657,2]
[388374900,1759132254863,-11.85317474,0.0001657,2]
[388374901,1759132254916,-488.14682526,0.0001657,2]
[388374902,1759132254926,-500.0,0.0001657,2]
[388374903,1759132254936,-81.78334084,0.0001657,2]
[388374904,1759132254947,-418.21665916,0.0001657,2]
[388374905,1759132254957,-500.0,0.0001657,2]
[388374906,1759132254967,-500.0,0.0001657,2]
[388374907,1759132254976,-36.36718582,0.0001657,2]
[388374908,1759132254988,-463.63281418,0.0001657,2]
[388374909,1759132254999,-500.0,0.0001657,2]
[388374910,1759132255008,-337.32140584,0.0001657,2]
[388374911,1759132258340,-162.67859416,0.0001657,2]
[388374912,1759132258352,-500.0,0.0001657,2]
[388374913,1759132258362,-500.0,0.0001657,2]
[388374914,1759132258373,-500.0,0.0001657,2]
[388374915,1759132258384,-500.0,0.0001657,2]
[388374916,1759132258394,-500.0,0.0001657,2]
[388374917,1759132258405,-500.0,0.0001657,2]
[388374918,1759132258415,-500.0,0.0001657,2]
[388374919,1759132258425,-500.0,0.0001657,2]
[388374920,1759132258435,-500.0,0.0001657,2]
[388374921,1759132258446,-500.0,0.0001657,2]
[388374922,1759132258456,-500.0,0.0001657,2]
[388374923,1759132258467,-207.04799957,0.0001657,2]
[388374924,1759132258478,-500.0,0.0001657,2]
[388374925,1759132258488,-500.0,0.00018283,2]
[388374926,1759132258512,-216.15435071,0.00018283,2]
[388374927,1759132258524,-257.94173289,0.00018283,2]
[388374928,1759132258535,-481.0,0.00018373,2]
[388374929,1759132258546,-481.0,0.00018647,2]
[388374930,1759132258556,-151.0,0.00018871,2]
[388374931,1759132258575,-151.0,0.00018871,2]
[388374932,1759132258595,-151.0,0.00018871,2]
[388374933,1759132258617,-243.635918,0.00018871,2]
[388374934,1759132258637,-243.635918,0.00018871,2]
[388374935,1759132258654,-243.635918,0.00018871,2]
[388374936,1759132258665,-243.635918,0.00018871,2]
[388374937,1759132258675,-151.0,0.00018871,2]
[388374938,1759132258686,-151.0,0.00018871,2]
[388374939,1759132258696,-151.0,0.00018871,2]
[388374940,1759132258706,-243.635918,0.00018871,2]
[388374941,1759132258716,-243.635918,0.00018871,2]
[388374942,1759132258727,-151.0,0.00018871,2]
[388374943,1759132258737,-151.0,0.00018871,2]
[388374944,1759132258747,-481.0,0.00018921,2]
[388374945,1759132258758,-481.0,0.00019195,2]
[388374946,1759132258768,-151.0,0.00019195,2]
[388374947,1759132258779,-151.0,0.00019195,2]
[388374948,1759132258790,-243.635918,0.00019195,2]
[388374949,1759132258800,-243.635918,0.00019195,2]
[388374950,1759132258811,-151.0,0.00019195,2]
[388374951,1759132258822,-243.635918,0.00019195,2]
[388374952,1759132258832,-151.0,0.00019421,2]
[388374953,1759132258843,-244.649998,0.00019421,2]
[388374954,1759132258854,-243.635918,0.00019421,2]
[388374955,1759132258867,-243.635918,0.00019421,2]
[388374956,1759132258877,-151.0,0.00019421,2]
[388374957,1759132258888,-243.635918,0.00019421,2]
[388374958,1759132258899,-481.0,0.00019469,2]
[388374959,1759132258909,-151.0,0.00019726,2]
[388374960,1759132258919,-243.635918,0.00019726,2]